[Event "10th Iberoamericano-ch 2024"]
[Site "Linares"]
[Date "2024.09.30"]
[Round "8.38"]
[White "Diaz Mino, Daniel"]
[Black "Gavarrete, Joel"]
[Result "1-0"]
[ECO "C26"]
[WhiteElo "2130"]
[BlackElo "2059"]
[Annotator "RC"]
[PlyCount "71"]
[EventDate "2024.09.25"]
[EventType "swiss"]
[EventCountry "ESP"]
[SourceTitle "playchess.com"]
[Source "ChessBase"]
[SourceQuality "1"]
[TimeControl "5400+30"]

1. e4 {[%emt 0:00:12]} e5 {[%emt 0:00:15]} 2. Nc3 {[%emt 0:00:08]} Nf6 {[%emt 0:00:20]} 3. d4 {[%emt 0:00:04]} exd4 {[%emt 0:02:03]} 4. Qxd4 {[%emt 0:00:05]} Nc6 {[%emt 0:00:26]} 5. Qd3 {[%emt 0:00:04]} Bc5 {[%emt 0:05:45]} 6. Bf4 {[%emt 0:00:54]} d6 {[%emt 0:03:49]} 7. Qd2 {[%emt 0:00:18]} a6 {[%emt 0:05:30]} 8. O-O-O {[%emt 0:03:33]} Be6 {[%emt 0:03:46]} 9. f3 {[%emt 0:00:41]} O-O {[%emt 0:16:30]} 10. g4 {[%emt 0:08:02]} b5 {[%emt 0:03:39]} 11. Kb1 {[%emt 0:01:49]} Ne5 {[%emt 0:05:04]} 12. Qg2 {[%emt 0:12:53]} Nfd7 {[%emt 0:06:43]} 13. h4 {[%emt 0:16:36]} c6 {[%emt 0:01:28]} 14. Bd2 {[%emt 0:07:01]} b4 {[%emt 0:08:12]} 15. Na4 {[%emt 0:01:26]} Qa5 {[%emt 0:00:14]} 16. b3 {[%emt 0:00:28]} Nb6 {[%emt 0:05:00]} 17. Nxb6 {[%emt 0:09:41]} Qxb6 {[%emt 0:00:45]} 18. f4 Nxg4 {[%emt 0:07:37]} 19. Nh3 {[%emt 0:00:54]} Ne3 {[%emt 0:05:41]} 20. Bxe3 {[%emt 0:00:11]} Bxh3 {[%emt 0:01:00]} 21. Rxh3 {[%emt 0:00:14]} Bxe3 {[%emt 0:00:07]} 22. Rg3 {[%emt 0:00:26]} Bxf4 {[%emt 0:03:09]} 23. Rxg7+ {[%emt 0:07:22]} Kh8 {[%emt 0:00:03]} 24. Bc4 {[%emt 0:00:18]} Rg8 {[%emt 0:03:35]} 25. Rg4 {[%emt 0:02:39]} Qa7 {[%emt 0:02:55]} 26. Rg1 {[%emt 0:00:46]} Rxg4 {[%emt 0:00:37]} 27. Qxg4 {[%emt 0:00:03]} Be5 {[%emt 0:00:01]} 28. Rd1 {[%emt 0:08:11]} Rg8 {[%emt 0:01:08]} 29. Qf3 {[%emt 0:08:41]} Rg1 {[%emt 0:00:22]} 30. Bf1 {[%emt 0:00:01]} a5 {[%emt 0:02:04]} 31. h5 {[%emt 0:02:23]} h6 {[%emt 0:01:17]} 32. Rd3 {[%emt 0:06:22]} a4 {[%emt 0:00:35]} 33. bxa4 {[%emt 0:00:19]} Qe7 {[%emt 0:03:49]} 34. Qf2 {[%emt 0:00:40]} Qh4 {[%emt 0:01:26]} 35. Rf3 {[%emt 0:00:57]} f6 {[%emt 0:01:00]} 36. Qxh4 {[%emt 0:00:20]} 1-0

[Event "10th Iberoamericano-ch 2024"]
[Site "Linares"]
[Date "2024.09.30"]
[Round "8.39"]
[White "Gomez Carreno, Martin"]
[Black "Abrisqueta Zudaire, Leyre"]
[Result "1/2-1/2"]
[ECO "B40"]
[WhiteElo "2124"]
[BlackElo "2057"]
[Annotator "RC"]
[PlyCount "111"]
[EventDate "2024.09.25"]
[EventType "swiss"]
[EventCountry "ESP"]
[SourceTitle "playchess.com"]
[Source "ChessBase"]
[SourceQuality "1"]
[TimeControl "5400+30"]

1. e4 {[%emt 0:00:02]} c5 {[%emt 0:00:42]} 2. Nc3 {[%emt 0:00:05]} e6 {[%emt 0:00:04]} 3. Nf3 {[%emt 0:00:10]} Nc6 {[%emt 0:00:05]} 4. d4 {[%emt 0:00:10]} cxd4 {[%emt 0:00:06]} 5. Nxd4 {[%emt 0:00:06]} Nf6 {[%emt 0:00:04]} 6. g3 {[%emt 0:00:07]} Bb4 {[%emt 0:00:06]} 7. Bg2 {[%emt 0:01:40]} O-O {[%emt 0:00:10]} 8. O-O {[%emt 0:00:38]} d6 {[%emt 0:00:20]} 9. Nde2 {[%emt 0:09:54]} a6 {[%emt 0:00:17]} 10. a3 {[%emt 0:01:40]} Bc5 {[%emt 0:00:23]} 11. b3 {[%emt 0:02:25]} Rb8 {[%emt 0:03:51]} 12. Bb2 {[%emt 0:05:58]} b5 {[%emt 0:01:49]} 13. Nf4 {[%emt 0:02:52]} Bb7 {[%emt 0:10:25]} 14. Qd2 {[%emt 0:03:17]} Qc7 {[%emt 0:07:50]} 15. Nxb5 {[%emt 0:10:08]} Qe7 {[%emt 0:11:29]} 16. Nc3 {[%emt 0:01:37]} Rfc8 {[%emt 0:00:29]} 17. Rad1 {[%emt 0:07:55]} Rd8 {[%emt 0:04:41]} 18. h3 {[%emt 0:03:45]} Ba7 {[%emt 0:01:17]} 19. Kh2 {[%emt 0:03:17]} Ne5 {[%emt 0:01:46]} 20. Nd3 {[%emt 0:03:33]} Bd4 {[%emt 0:02:48]} 21. Qe2 {[%emt 0:09:35]} Rbc8 {[%emt 0:03:34]} 22. Na4 {[%emt 0:03:25]} Bxb2 {[%emt 0:00:42]} 23. Naxb2 {[%emt 0:00:18]} Nc6 {[%emt 0:01:57]} 24. Nf4 {[%emt 0:01:28]} Qc7 {[%emt 0:03:05]} 25. Qe3 {[%emt 0:08:26]} Ne5 {[%emt 0:02:57]} 26. Kg1 {[%emt 0:03:07]} Qxc2 {[%emt 0:00:59]} 27. Na4 {[%emt 0:00:37]} Nc4 {[%emt 0:06:17]} 28. bxc4 {[%emt 0:04:40]} Qxa4 {[%emt 0:00:28]} 29. Rb1 {[%emt 0:02:09]} Ba8 {[%emt 0:06:00]} 30. Rb4 {[%emt 0:00:17]} Qa5 {[%emt 0:00:20]} 31. Rd1 {[%emt 0:01:50]} Qe5 {[%emt 0:01:26]} 32. f3 {[%emt 0:06:26]} h6 {[%emt 0:02:41]} 33. Qb6 {[%emt 0:01:08]} g5 {[%emt 0:07:36]} 34. Ne2 {[%emt 0:01:05]} h5 {[%emt 0:06:19]} 35. Qxa6 {[%emt 0:01:49]} Qc5+ {[%emt 0:00:05]} 36. Kf1 {[%emt 0:00:30]} g4 {[%emt 0:01:50]} 37. Qb6 {[%emt 0:01:16]} gxf3 {[%emt 0:00:22]} 38. Bxf3 {[%emt 0:00:03]} Bxe4 {[%emt 0:00:32]} 39. Qxc5 {[%emt 0:00:32]} Rxc5 {[%emt 0:01:02]} 40. Kf2 {[%emt 0:01:01]} Bxf3 {[%emt 0:02:23]} 41. Kxf3 {[%emt 0:00:01]} Nd7 {[%emt 0:00:30]} 42. Kg2 {[%emt 0:00:31]} Ne5 {[%emt 0:00:09]} 43. Rb5 {[%emt 0:00:12]} Rcc8 {[%emt 0:01:08]} 44. c5 {[%emt 0:00:32]} Nc4 {[%emt 0:02:55]} 45. Rd3 {[%emt 0:00:03]} dxc5 {[%emt 0:00:31]} 46. Rxd8+ {[%emt 0:00:35]} Rxd8 {[%emt 0:00:02]} 47. Rxc5 {[%emt 0:00:07]} Nxa3 {[%emt 0:00:12]} 48. Rxh5 {[%emt 0:00:08]} Nc4 {[%emt 0:00:32]} 49. Rc5 {[%emt 0:00:43]} Ne3+ {[%emt 0:01:06]} 50. Kf3 {[%emt 0:01:00]} Nf5 {[%emt 0:00:19]} 51. Nf4 {[%emt 0:00:39]} Rb8 {[%emt 0:01:00]} 52. Rc3 {[%emt 0:00:02]} Ne7 {[%emt 0:02:31]} 53. Re3 {[%emt 0:00:39]} Nf5 {[%emt 0:00:06]} 54. Rc3 {[%emt 0:00:15]} Ne7 {[%emt 0:00:02]} 55. Re3 {[%emt 0:01:07]} Nf5 {[%emt 0:00:02]} 56. Rc3 {[%emt 0:00:25]} 1/2-1/2